bitfinex/quotes_SOLUSD_20250722
["timestamp","ask_amount","ask_price","bid_price","bid_amount"]
[1753152075538,16.78468397,203.75,203.73,6.91971553]
[1753152075739,35.38,203.74,203.73,6.91971553]
[1753152075944,16.78468397,203.73,203.7,6.91971553]
[1753152076157,16.78468397,203.71,203.7,6.91971553]
[1753152077955,16.78468397,203.71,203.7,26.0]
[1753152078254,16.78468397,203.71,203.7,32.91971553]
[1753152079038,21.69337698,203.73,203.69,1e-08]
[1753152079246,16.78468397,203.71,203.7,6.91971553]
[1753152079443,52.14468397,203.71,203.7,6.91971553]
[1753152079646,52.14468397,203.71,203.7,7.62971553]
[1753152079647,35.36,203.71,203.7,7.62971553]
[1753152080351,52.14468397,203.71,203.7,6.91971553]
[1753152081434,52.82468397,203.71,203.69,32.91971554]
[1753152082357,52.14468397,203.71,203.69,32.91971554]
[1753152083052,16.78468397,203.7,203.69,1e-08]
[1753152083252,17.46468397,203.7,203.69,1e-08]
[1753152083865,16.78468397,203.66,203.63,1e-08]
[1753152084041,23.7043995,203.64,203.6,0.03]
[1753152084238,23.7043995,203.64,203.53,0.9615596]
[1753152084239,16.78468397,203.6,203.55,30.0]
[1753152084439,16.78468397,203.58,203.55,30.0]
[1753152084751,16.78468397,203.56,203.55,30.0]
[1753152085075,4.91279783,203.55,203.53,0.9615596]
[1753152085360,35.36,203.54,203.53,0.9615596]
[1753152085753,16.78468397,203.53,203.48,0.71]
[1753152085957,35.36,203.52,203.5,32.91971553]
[1753152086261,35.36,203.52,203.5,6.91971553]
[1753152086636,52.14468397,203.52,203.51,6.91971553]
[1753152087157,35.36,203.52,203.51,7.62971553]
[1753152087362,4.91062659,203.64,203.54,26.0]
[1753152087660,4.91062659,203.64,203.51,19.46319451]
[1753152087661,5.59024016,203.66,203.63,6.91971553]
[1753152087848,16.78468397,203.64,203.63,6.91971553]
[1753152088032,17.46468397,203.64,203.6,6.91971553]
[1753152088233,36.04,203.63,203.58,32.91971553]
[1753152088458,24.3843995,203.62,203.56,6.91971553]
[1753152088647,35.36,203.61,203.58,6.91971553]
[1753152089172,16.78468397,203.59,203.57,6.91971553]
[1753152089345,16.78468397,203.57,203.54,0.71]
[1753152089662,35.36,203.56,203.55,26.0]
[1753152089866,52.14468397,203.56,203.55,26.0]
[1753152090057,16.78468397,203.55,203.53,26.0]
[1753152090264,16.78468397,203.55,203.53,0.71]
[1753152090482,35.36,203.54,203.51,26.0]
[1753152090681,35.36,203.54,203.53,6.91971553]
[1753152091181,35.36,203.54,203.53,12.54299612]
[1753152091482,35.36,203.54,203.53,7.62971553]
[1753152091685,35.36,203.54,203.53,12.54299612]
[1753152093273,16.78468397,203.59,203.53,12.54299612]
[1753152093575,16.78468397,203.62,203.58,6.91971553]
[1753152093780,35.36,203.61,203.58,6.91971553]
[1753152093962,36.04,203.61,203.58,6.91971553]
[1753152094858,36.04,203.61,203.54,26.71]
[1753152094859,16.78468397,203.59,203.57,32.91971553]
[1753152095087,52.14468397,203.58,203.57,26.0]
[1753152095260,52.14468397,203.58,203.56,6.91971553]
[1753152095261,16.78468397,203.57,203.56,32.91971553]
[1753152096365,16.78468397,203.57,203.48,30.0]
[1753152096560,17.46468397,203.57,203.53,6.91971553]
[1753152096870,16.78468397,203.55,203.51,6.91971553]
[1753152097072,16.78468397,203.53,203.51,6.91971553]
[1753152097680,16.78468397,203.53,203.52,6.91971553]
[1753152100280,16.78468397,203.49,203.46,0.03]
[1753152100466,16.78468397,203.47,203.46,0.03]
[1753152100664,16.78468397,203.47,203.46,6.94971553]
[1753152101085,35.36,203.48,203.46,11.86468653]
[1753152101285,16.78468397,203.47,203.46,6.94971553]
[1753152101493,16.78468397,203.47,203.46,0.03]
[1753152101731,17.44468397,203.47,203.46,0.03]
[1753152102377,24.3643995,203.47,203.46,0.03]
[1753152102772,52.80468397,203.47,203.46,0.03]
[1753152103166,59.23501341,203.47,203.46,0.03]
[1753152103375,66.15472894,203.47,203.46,0.03]
[1753152103803,16.78468397,203.45,203.42,0.03]
[1753152103975,23.7043995,203.43,203.42,0.03]
[1753152104178,59.0643995,203.43,203.39,0.28828319]
[1753152104499,23.7043995,203.4,203.39,0.28828319]
[1753152104792,63.98082034,203.4,203.39,0.28828319]
[1753152105093,64.64082034,203.4,203.39,0.28828319]
[1753152105302,70.31610005,203.4,203.39,0.28828319]
[1753152105509,16.78468397,203.39,203.31,30.0]
[1753152105726,7.8117,203.33,203.31,30.0]
[1753152106013,52.80468397,203.32,203.27,6.91971553]
[1753152106181,59.7243995,203.32,203.24,0.67]
[1753152106521,17.44468397,203.31,203.24,0.67]
[1753152106801,17.44468397,203.31,203.2,6.91971553]
[1753152106802,16.78468397,203.3,203.2,6.91971553]
[1753152107004,16.78468397,203.3,203.08,10.0]
[1753152107005,26.0,203.25,203.21,30.0]
[1753152107218,23.7043995,203.23,203.16,6.91971553]
[1753152107380,16.78468397,203.21,203.14,0.67]
[1753152107584,35.36,203.2,203.14,0.67]
[1753152107798,16.78468397,203.19,203.13,4.92295574]
[1753152108099,16.78468397,203.17,203.15,30.0]
[1753152108305,52.16468397,203.16,203.15,30.67]
[1753152108479,52.16468397,203.16,203.15,42.51218661]
[1753152109095,52.16468397,203.16,203.15,35.59247108]
[1753152109294,52.16468397,203.16,203.15,36.91971553]
[1753152109480,52.16468397,203.16,203.15,30.0]
[1753152109683,52.16468397,203.16,203.15,36.91971553]
[1753152109884,52.16468397,203.16,203.15,41.84218661]
[1753152110208,52.16468397,203.16,203.15,36.91971553]
[1753152110412,52.16468397,203.16,203.15,30.0]
[1753152110602,52.82468397,203.16,203.15,30.0]
[1753152110805,16.78468397,203.16,203.15,30.0]
[1753152110986,16.78468397,203.23,203.15,37.58971553]
[1753152111191,16.78468397,203.21,203.18,6.91971553]
[1753152111411,16.78468397,203.21,203.18,30.0]
[1753152111616,16.78468397,203.19,203.18,30.0]
[1753152112590,17.44468397,203.19,203.18,30.0]
[1753152112903,22.36618601,203.19,203.18,30.0]
[1753152113519,34.42886107,203.19,203.18,30.0]
[1753152114403,22.5876435,203.19,203.18,30.0]
[1753152114589,52.84468397,203.19,203.18,30.0]
[1753152114995,64.68590154,203.19,203.18,30.0]
[1753152115311,69.54314642,203.19,203.18,24.28]
[1753152115508,26.0,203.16,203.03,4.92519235]
[1753152115822,16.78468397,203.13,203.05,30.0]
[1753152116003,16.78468397,203.1,203.05,36.91971553]
[1753152116203,16.78468397,203.08,203.05,30.0]
[1753152116405,16.78468397,203.06,203.05,30.0]
[1753152116744,52.20468397,203.06,203.05,30.67]
[1753152116914,52.20468397,203.06,203.05,37.58971553]
[1753152117215,52.20468397,203.06,203.05,30.0]
[1753152117510,35.46,203.06,203.05,30.67]
[1753152117711,5.46,203.06,203.05,12.51461087]
[1753152117889,5.46,203.06,203.03,26.67]
[1753152118094,5.46,203.06,203.05,6.91971553]
[1753152118302,5.46,203.06,203.04,7.58971553]
[1753152118592,5.46,203.06,203.04,6.91971553]
[1753152118791,35.48,203.06,203.05,7.58971553]
[1753152119302,35.48,203.09,203.05,7.58971553]
[1753152119505,35.48,203.09,203.07,26.0]
[1753152119710,35.48,203.09,203.08,37.58971553]
[1753152119904,35.48,203.11,203.08,36.91971553]
[1753152120101,35.48,203.11,203.1,6.91971553]
[1753152120309,35.48,203.11,203.1,7.58971553]
[1753152120827,16.78468397,203.12,203.1,0.67]
[1753152121023,16.78468397,203.12,203.08,30.0]
[1753152121195,23.7043995,203.1,203.08,30.0]
[1753152121394,35.48,203.09,203.08,30.0]
[1753152121908,52.26468397,203.09,203.08,30.0]
[1753152122123,59.1843995,203.09,203.08,30.0]
[1753152122694,57.18860932,203.09,203.08,30.0]
[1753152122903,64.10832485,203.09,203.08,30.0]
[1753152123104,59.1843995,203.09,203.08,30.0]
[1753152124710,52.26468397,203.09,203.08,30.0]
[1753152124912,59.1843995,203.09,203.08,30.0]
[1753152125111,64.10832485,203.09,203.08,30.0]
[1753152125313,64.76832485,203.09,203.08,30.0]
[1753152125731,23.7043995,203.09,203.08,30.0]
[1753152125897,59.1643995,203.09,203.08,30.0]
[1753152126606,64.74832485,203.09,203.08,30.0]
[1753152127034,64.74832485,203.09,203.08,29.09481]
[1753152127334,69.84071381,203.09,203.08,29.09481]
[1753152127521,23.7043995,203.01,203.0,0.03]
[1753152127703,59.1643995,203.01,203.0,0.03]
[1753152128207,52.24468397,203.01,203.0,0.03]
[1753152128512,59.8243995,203.01,203.0,0.03]
[1753152128714,52.24468397,203.01,203.0,0.03]
[1753152128909,57.83054969,203.01,203.0,0.03]
[1753152129106,52.24468397,203.01,203.0,0.03]
[1753152129707,64.75026522,203.01,203.0,0.03]
[1753152130017,67.15939603,203.01,202.93,3.7724802]
[1753152130217,2.40913081,203.01,202.96,6.91971553]
[1753152130413,52.36468397,203.0,202.97,0.72]
[1753152130819,59.2843995,203.0,202.93,35.4201836]
[1753152131016,64.21070311,203.0,202.94,6.91971553]
[1753152131209,16.78468397,202.96,202.93,3.7724802]
[1753152131413,35.6,202.95,202.93,3.7724802]
[1753152131764,6.91971553,202.99,202.93,10.69219573]
[1753152131916,16.78468397,202.97,202.93,9.42026517]
[1753152132220,35.64,202.96,202.94,0.72]
[1753152132401,35.64,202.95,202.94,7.63971553]
[1753152132601,35.64,202.96,202.93,3.7724802]
[1753152132818,16.78468397,202.98,202.93,4.4924802]
[1753152133013,16.78468397,202.96,202.93,3.7724802]
[1753152133224,16.78468397,202.94,202.93,3.7724802]
[1753152133406,7.57971553,202.96,202.93,3.7724802]
[1753152133609,52.48468397,202.95,202.93,3.7724802]
[1753152133814,17.44468397,202.94,202.93,3.7724802]
[1753152134013,24.3643995,202.94,202.93,3.7724802]
[1753152134818,60.1043995,202.94,202.93,3.7724802]
[1753152135113,60.1043995,202.94,202.93,1e-08]
[1753152135114,91.03196429,202.94,202.93,1e-08]
[1753152135432,65.03196429,202.94,202.93,1e-08]
[1753152135638,71.95167982,202.94,202.93,1e-08]
[1753152136034,16.78468397,202.9,202.8,26.0]
[1753152136219,16.78468397,202.81,202.74,0.72]
[1753152136412,35.78,202.8,202.74,0.72]
[1753152136619,35.78,202.82,202.79,6.91971553]
[1753152136820,35.78,202.82,202.8,0.72]
[1753152137042,35.8,202.85,202.81,11.85021159]
[1753152137249,13.45631553,202.95,202.84,6.91971553]
[1753152137540,35.82,202.94,202.92,6.91971553]
[1753152137718,16.78468397,202.96,202.92,7.63971553]
[1753152137919,35.84,202.95,202.91,6.91971553]
[1753152138226,35.84,202.95,202.9,26.0]
[1753152138547,35.84,202.95,202.88,0.72]
[1753152138848,16.78468397,202.94,202.88,0.72]
[1753152139043,16.78468397,202.92,202.89,26.0]
[1753152139347,16.78468397,202.9,202.89,26.0]
[1753152139647,35.84,202.9,202.87,26.0]
[1753152139836,27.20330243,202.95,202.89,11.13861846]
[1753152140024,16.78468397,202.93,202.89,0.72]
[1753152140229,16.78468397,202.93,202.86,0.72]
[1753152140432,16.78468397,202.89,202.86,0.72]
[1753152140742,16.78468397,202.9,202.83,26.72]
[1753152140945,16.78468397,202.87,202.83,26.0]
[1753152141118,21.71398522,202.87,202.83,26.0]
[1753152141437,16.78468397,202.84,202.79,10.41861846]
[1753152141641,16.78468397,202.82,202.75,4.93215669]
[1753152141938,16.78468397,202.82,202.77,10.41861846]
[1753152142122,10.41861846,202.78,202.69,4.9334644]
[1753152142322,0.66,202.81,202.7,0.72]
[1753152142323,16.78468397,202.76,202.7,0.72]
[1753152142529,16.78468397,202.75,202.74,26.0]
[1753152142725,16.78468397,202.75,202.74,0.72]
[1753152142929,16.78468397,202.75,202.7,5.65319227]
[1753152143134,27.86330243,202.75,202.66,0.72]
[1753152143334,27.86330243,202.75,202.62,12.33785027]
[1753152143335,16.78468397,202.7,202.68,0.1]
[1753152143534,63.28330243,202.69,202.68,0.1]
[1753152143845,52.86468397,202.69,202.68,0.1]
[1753152144144,52.90468397,202.69,202.68,0.1]
[1753152144357,53.56468397,202.69,202.68,0.1]
[1753152144549,63.98330243,202.69,202.68,0.1]
[1753152144744,16.78468397,202.69,202.68,0.1]
[1753152145766,10.41861846,202.75,202.68,16.17250438]
[1753152145949,16.78468397,202.73,202.69,10.41861846]
[1753152146129,16.78468397,202.73,202.7,0.72]
[1753152146328,36.2,202.72,202.68,5.75388592]
[1753152146551,16.78468397,202.71,202.68,0.1]
[1753152146783,10.41861846,202.69,202.68,0.1]
[1753152146964,16.78468397,202.69,202.68,0.1]
[1753152147134,69.05694493,202.69,202.68,0.1]
[1753152147328,57.97832647,202.69,202.68,0.1]
[1753152147556,69.05694493,202.69,202.68,0.1]
[1753152147742,64.12330243,202.69,202.68,0.1]
[1753152147932,69.05694493,202.69,202.68,0.1]
[1753152148128,22.37832647,202.69,202.68,0.1]
[1753152148456,32.79694493,202.69,202.68,0.1]
[1753152148646,69.07694493,202.69,202.68,0.1]
[1753152149145,16.78468397,202.68,202.54,0.72]
[1753152149343,27.20330243,202.59,202.5,5.6582716]
[1753152149667,0.66,202.67,202.5,5.6582716]
[1753152149668,27.20330243,202.57,202.5,5.6582716]
[1753152149835,16.78468397,202.55,202.49,4.93846211]
[1753152150154,16.78468397,202.53,202.49,0.72]
[1753152150327,0.66,202.58,202.5,10.41861846]
[1753152150529,53.10468397,202.57,202.52,10.41861846]
[1753152150752,10.41861846,202.6,202.54,10.41861846]
[1753152151059,0.66,202.63,202.45,17.28821931]
[1753152151060,16.78468397,202.58,202.53,10.41861846]
[1753152151269,16.78468397,202.56,202.52,26.0]
[1753152151442,16.78468397,202.54,202.47,4.93883813]
[1753152151645,16.78468397,202.55,202.5,10.41861846]
[1753152151836,36.42,202.54,202.53,10.41861846]
[1753152152038,36.42,202.54,202.51,11.13861846]
[1753152152235,10.41861846,202.57,202.51,10.41861846]
[1753152152455,16.78468397,202.55,202.51,11.13861846]
[1753152152761,16.78468397,202.55,202.5,26.0]
[1753152152942,16.78468397,202.55,202.5,36.41861846]
[1753152153140,46.83861846,202.56,202.5,36.41861846]
[1753152153656,16.78468397,202.51,202.46,4.93924121]
[1753152153957,36.4,202.5,202.44,0.72]
[1753152154160,16.78468397,202.49,202.41,4.94046736]
[1753152154333,46.81861846,202.5,202.45,10.41861846]
[1753152154334,36.4,202.5,202.45,10.41861846]
[1753152154537,36.4,202.5,202.41,17.29163578]
[1753152154538,16.78468397,202.48,202.42,0.72]
[1753152154868,10.41861846,202.45,202.32,6.3981]
[1753152155035,5.56120092,202.54,202.27,1.6257]
[1753152155036,11.78447155,202.56,202.45,4.93949123]
[1753152155230,14.823233,202.7,202.45,4.93949123]
[1753152155231,0.66,202.64,202.48,26.0]
[1753152155449,36.62,202.63,202.48,26.0]
[1753152155655,10.41861846,202.59,202.48,26.0]
[1753152155839,47.71861846,202.58,202.48,26.0]
[1753152156037,16.78468397,202.53,202.45,30.93949123]
[1753152156239,16.78468397,202.53,202.3,10.41861846]
[1753152156240,16.78468397,202.49,202.38,4.94119972]
[1753152156439,16.78468397,202.47,202.38,4.94119972]
[1753152156763,27.20330243,202.45,202.38,4.94119972]
[1753152156959,0.66,202.44,202.39,10.41861846]
[1753152157273,10.41861846,202.4,202.26,0.72]
[1753152157559,10.41861846,202.38,202.26,0.72]
[1753152157771,64.84330243,202.37,202.26,0.72]
[1753152157970,16.78468397,202.33,202.23,5.61486475]
[1753152158172,27.20330243,202.31,202.24,10.41861846]
[1753152158339,26.0,202.38,202.2,0.67]
[1753152158340,27.20330243,202.29,202.2,0.67]
[1753152158534,16.78468397,202.29,202.2,0.67]
[1753152158737,16.78468397,202.29,202.19,4.94584301]
[1753152158738,0.67,202.28,202.19,4.94584301]
[1753152159155,16.78468397,202.26,202.15,0.67]
[1753152159354,16.78468397,202.26,202.13,4.94731113]
[1753152159355,16.78468397,202.24,202.13,4.94731113]
[1753152159561,10.41861846,202.21,202.14,10.41861846]
[1753152159757,16.78468397,202.19,202.13,4.94731113]
[1753152159973,16.78468397,202.19,202.14,10.41861846]
[1753152160183,27.20330243,202.19,202.11,0.67]
[1753152160465,27.20330243,202.17,202.1,11.05773771]
[1753152160665,17.45468397,202.17,202.1,11.05773771]
[1753152160967,10.41861846,202.17,202.1,11.05773771]
[1753152161150,0.67,202.21,202.11,0.67]
[1753152161355,27.20330243,202.16,202.1,11.05773771]
[1753152161556,16.78468397,202.14,202.1,11.05773771]
[1753152161799,53.98468397,202.14,202.1,11.05773771]
[1753152162063,16.78468397,202.12,202.1,11.05773771]
[1753152162272,54.02468397,202.11,202.1,11.05773771]
[1753152162474,26.0,202.21,202.1,11.05773771]
[1753152162678,37.28,202.2,202.1,16.00554961]
[1753152162972,0.67,202.23,202.14,26.0]
[1753152163164,27.20330243,202.22,202.14,4.94682586]
[1753152163345,16.78468397,202.19,202.11,0.67]
[1753152163660,16.78468397,202.17,202.1,37.05773771]
[1753152163966,27.20330243,202.17,202.1,37.05773771]
[1753152164168,11.08861846,202.16,202.1,37.05773771]
[1753152164357,16.78468397,202.15,202.1,37.05773771]
[1753152164556,5.50574476,202.18,202.14,36.41861846]
[1753152164751,0.67,202.28,202.19,26.0]
[1753152164950,11.08861846,202.33,202.26,10.41861846]
[1753152165247,37.56,202.37,202.29,4.94324973]
[1753152165440,13.99197421,202.42,202.35,10.41861846]
[1753152165441,10.41861846,202.42,202.35,10.41861846]
[1753152165666,37.6,202.42,202.34,26.67]
[1753152165964,48.01861846,202.42,202.35,10.41861846]
[1753152166170,10.41861846,202.41,202.34,10.41861846]
[1753152166465,37.6,202.42,202.31,26.67]
[1753152166677,37.6,202.42,202.36,10.41861846]
[1753152166882,37.6,202.42,202.34,26.67]
[1753152167171,37.6,202.42,202.37,30.94123594]
[1753152167471,48.01861846,202.46,202.39,10.41861846]
[1753152167647,10.41861846,202.45,202.38,10.41861846]
[1753152167849,10.41861846,202.45,202.39,10.41861846]
[1753152168042,16.78468397,202.42,202.38,26.0]
[1753152168244,37.62,202.41,202.36,10.41861846]
[1753152168464,37.62,202.41,202.37,10.41861846]
[1753152168645,37.62,202.41,202.38,10.41861846]
[1753152168843,37.62,202.41,202.4,10.41861846]
[1753152169039,10.41861846,202.48,202.4,10.41861846]
[1753152169302,4.93847904,202.5,202.4,10.41861846]
[1753152169303,37.62,202.47,202.43,10.41861846]
[1753152169459,11.08861846,202.54,202.46,10.41861846]
[1753152169658,37.62,202.53,202.5,10.41861846]
[1753152169855,37.62,202.53,202.51,10.41861846]
[1753152170060,37.62,202.53,202.52,10.41861846]
[1753152170263,0.67,202.53,202.47,26.0]
[1753152170448,1.6411,202.52,202.47,15.1502]
[1753152170647,1.6411,202.52,202.24,24.72201709]
[1753152170648,21.78468397,202.47,202.24,24.72201709]
[1753152170859,26.0,202.41,202.22,19.76431528]
[1753152171072,5.0,202.38,202.22,19.76431528]
[1753152171257,5.0,202.35,202.22,19.76431528]
[1753152171454,5.0,202.3,202.23,0.67]
[1753152171665,5.0,202.28,202.23,0.67]
[1753152171948,5.0,202.31,202.27,10.41861846]
[1753152172155,5.0,202.31,202.22,4.94492783]
[1753152172156,12.35022015,202.43,202.28,8.6311]
[1753152172367,16.78468397,202.41,202.29,0.67]
[1753152172566,17.28736539,202.46,202.36,10.41861846]
[1753152172567,16.78468397,202.45,202.36,10.41861846]
[1753152172776,16.78468397,202.45,202.41,10.41861846]
[1753152172956,16.78468397,202.45,202.32,10.0]
[1753152173171,16.78468397,202.45,202.38,10.41861846]
[1753152173377,16.78468397,202.43,202.42,10.41861846]
[1753152173679,16.78468397,202.48,202.34,14.94210381]
[1753152173873,16.78468397,202.48,202.34,4.94210381]
[1753152174073,16.78468397,202.48,202.44,10.41861846]
[1753152174270,16.78468397,202.48,202.34,4.94210381]
[1753152174481,4.93883097,202.48,202.34,4.94210381]
[1753152174680,4.93883097,202.48,202.44,10.41861846]
[1753152174862,5.60883097,202.48,202.44,10.41861846]
[1753152175057,5.60883097,202.48,202.37,26.67]
[1753152175058,17.45468397,202.47,202.37,26.67]
[1753152175397,17.45468397,202.47,202.37,0.67]
[1753152175398,16.78468397,202.45,202.37,0.67]
[1753152175693,16.78468397,202.45,202.34,0.67]
[1753152175867,27.20330243,202.45,202.37,10.41861846]
[1753152176075,16.78468397,202.43,202.34,26.67]
[1753152176276,16.78468397,202.41,202.34,0.67]
[1753152176483,5.60924725,202.46,202.4,10.41861846]
[1753152176658,16.78468397,202.47,202.43,10.41861846]
[1753152176857,39.46,202.46,202.42,10.41861846]
[1753152177077,16.78468397,202.43,202.37,10.41861846]
[1753152177280,10.41861846,202.42,202.35,10.41861846]
[1753152177482,4.94022329,202.42,202.33,0.67]
[1753152177661,27.20330243,202.39,202.32,10.41861846]
[1753152177863,39.46,202.38,202.32,10.41861846]
[1753152178068,39.46,202.38,202.29,0.67]
[1753152178069,27.20330243,202.37,202.3,10.41861846]
[1753152178298,39.44,202.36,202.32,10.41861846]
[1753152178664,39.44,202.36,202.31,10.41861846]
[1753152179066,39.44,202.36,202.32,0.67]
[1753152179308,39.44,202.38,202.33,0.67]
[1753152179473,39.44,202.38,202.36,10.41861846]
[1753152179782,39.44,202.38,202.33,0.67]
[1753152179783,39.44,202.38,202.35,10.41861846]
[1753152179967,39.44,202.38,202.36,10.41861846]
[1753152180166,15.35833954,202.45,202.37,0.67]
[1753152180387,39.42,202.44,202.33,30.94237174]
[1753152180608,10.41861846,202.4,202.32,0.67]
[1753152180799,0.67,202.39,202.3,10.41861846]
[1753152181121,39.44,202.38,202.31,0.67]
[1753152181411,27.87330243,202.43,202.36,10.41861846]
[1753152181608,39.46,202.42,202.32,4.94266508]
[1753152181783,39.46,202.42,202.37,10.41861846]
[1753152181983,39.46,202.41,202.38,10.41861846]
[1753152182184,39.46,202.41,202.35,0.67]
[1753152182482,0.67,202.46,202.4,10.41861846]
[1753152182696,6.6249,202.5,202.33,26.0]
[1753152182697,40.09,202.45,202.37,10.41861846]
[1753152182899,10.41861846,202.45,202.38,10.41861846]
[1753152183108,10.41861846,202.46,202.33,26.0]
[1753152183407,5.60851548,202.49,202.39,0.67]
[1753152183408,39.46,202.45,202.39,0.67]
[1753152183705,4.93802775,202.51,202.43,10.41861846]
[1753152183918,4.93729633,202.54,202.45,10.41861846]
[1753152184078,39.44,202.53,202.43,0.67]
[1753152184282,4.93729633,202.54,202.45,10.41861846]
[1753152184483,16.78468397,202.52,202.39,31.61093878]
[1753152184683,16.78468397,202.5,202.39,42.02955724]
[1753152184903,39.46,202.49,202.39,31.61093878]
[1753152185107,16.78468397,202.53,202.42,10.41861846]
[1753152185279,16.78468397,202.53,202.4,0.67]
[1753152185280,39.46,202.52,202.45,10.41861846]
[1753152185485,12.34138606,202.58,202.47,15.35762176]
[1753152185486,0.67,202.58,202.47,15.35762176]
[1753152185701,10.41861846,202.54,202.47,4.9390033]
[1753152185899,39.44,202.53,202.48,10.41861846]
[1753152186209,16.78468397,202.57,202.48,10.41861846]
[1753152186413,39.44,202.56,202.49,0.67]
[1753152186597,4.93607779,202.59,202.51,10.41861846]
[1753152186795,0.06,202.63,202.56,10.41861846]
[1753152186993,0.06,202.63,202.57,10.41861846]
[1753152187190,0.06,202.63,202.57,0.67]
[1753152187392,0.06,202.63,202.62,10.41861846]
[1753152187595,4.9328097,202.73,202.62,16.02396541]
[1753152187897,4.9328097,202.73,202.67,10.41861846]
[1753152188123,36.23,202.75,202.65,0.68]
[1753152188409,36.23,202.75,202.61,26.0]
[1753152188410,39.48,202.74,202.61,26.0]
[1753152188586,16.78468397,202.74,202.63,10.41861846]
[1753152188788,39.46,202.73,202.64,0.68]
[1753152189190,16.78468397,202.72,202.64,0.68]
[1753152189391,41.16218645,202.75,202.64,0.68]
[1753152189392,40.49218645,202.75,202.64,0.68]
[1753152189606,10.41861846,202.73,202.67,10.41861846]
[1753152189784,52.82264267,202.75,202.64,5.6148524]
[1753152189988,49.89861846,202.74,202.68,10.41861846]
[1753152190209,40.49218645,202.75,202.68,10.41861846]
[1753152190511,40.49218645,202.75,202.65,0.68]
[1753152190815,10.41861846,202.74,202.68,10.41861846]
[1753152190988,39.44,202.73,202.66,0.68]
[1753152191188,39.44,202.73,202.67,10.41861846]
[1753152191488,44.37287025,202.73,202.68,10.41861846]
[1753152191697,5.65287025,202.73,202.65,10.41861846]
[1753152191896,49.83861846,202.72,202.66,10.41861846]
[1753152192095,39.4,202.71,202.66,0.68]
[1753152192296,10.41861846,202.7,202.63,10.41861846]
[1753152192520,49.83861846,202.69,202.63,10.41861846]
[1753152192720,39.42,202.68,202.64,10.41861846]
[1753152193010,39.4,202.68,202.6,0.68]
[1753152193218,39.9,202.67,202.63,10.41861846]
[1753152193404,39.88,202.67,202.64,0.68]
[1753152193604,10.41861846,202.69,202.53,128.08]
[1753152193605,39.38,202.69,202.66,10.41861846]
[1753152193916,35.62,202.75,202.67,0.68]
[1753152194210,16.78468397,202.72,202.64,10.41861846]
[1753152194416,39.4,202.71,202.67,10.41861846]
[1753152194610,39.4,202.7,202.61,26.0]
[1753152194803,39.4,202.7,202.68,11.09861846]
[1753152194995,16.78468397,202.74,202.68,0.68]
[1753152195196,39.4,202.73,202.68,11.09861846]
[1753152195396,35.62,202.75,202.69,0.68]
[1753152195614,49.77861846,202.74,202.69,0.68]
[1753152195821,40.55227655,202.75,202.69,11.09861846]
[1753152196111,40.55227655,202.75,202.72,10.41861846]
[1753152196112,0.06,202.75,202.72,10.41861846]
[1753152196314,0.06,202.75,202.72,11.09861846]
[1753152196523,0.06,202.75,202.73,0.68]
[1753152196717,0.06,202.75,202.74,10.41861846]
[1753152196899,0.06,202.75,202.74,0.68]
[1753152197408,0.06,202.77,202.76,26.0]
[1753152197601,0.06,202.77,202.76,42.03055769]
[1753152197917,35.52,202.9,202.76,42.03055769]
[1753152197918,39.4,202.85,202.76,42.03055769]
[1753152198101,39.4,202.88,202.77,0.68]
[1753152198296,39.4,202.87,202.83,10.41861846]
[1753152198610,39.4,202.87,202.8,10.41861846]
[1753152198818,16.78468397,202.85,202.74,0.68]
[1753152199110,16.78468397,202.85,202.77,10.41861846]
[1753152199300,39.44,202.84,202.75,10.41861846]
[1753152199613,39.42,202.83,202.78,10.41861846]
[1753152199815,10.41861846,202.87,202.81,10.41861846]
[1753152199995,66.66330243,202.86,202.8,10.41861846]
[1753152200204,56.24468397,202.86,202.8,10.41861846]
[1753152200500,4.92902208,202.88,202.79,0.68]
[1753152200706,39.42,202.87,202.82,10.41861846]